fUST/lending_fUST_20240408
["ID","MTS","AMOUNT","RATE_DAILY","PERIOD"]
[321846397,1712562643468,-1864.26,0.00025205,2]
[321846398,1712562643478,-500.0,0.00025205,2]
[321846399,1712562643487,-500.0,0.00025205,2]
[321846400,1712562643496,-500.0,0.00025205,2]
[321846402,1712562643505,-782.37,0.00025205,2]
[321846404,1712562643515,-500.0,0.00025205,2]
[321846405,1712562643524,-505.13494789,0.00025205,2]
[321846406,1712562643534,-5545.12,0.00025205,2]
[321846407,1712562643543,-500.0,0.00025205,2]
[321846408,1712562643553,-500.0,0.00025205,2]
[321846409,1712562643562,-500.0,0.00025205,2]
[321846410,1712562643571,-533.32229006,0.00025205,2]
[321846411,1712562643580,-1977.17,0.00025205,2]
[321846412,1712562643589,-627.35,0.00025205,2]
[321846413,1712562643598,-765.09,0.00025205,2]
[321846414,1712562643607,-532.81,0.00025205,2]
[321846415,1712562643616,-500.0,0.00025205,2]
[321846416,1712562643625,-1192.42,0.00025205,2]
[321846417,1712562643633,-500.0,0.00025205,2]
[321846418,1712562643642,-500.0,0.00025205,2]
[321846419,1712562643651,-260.70645524,0.00025205,2]
[321846420,1712562643660,-1164.07,0.00025205,2]
[321846421,1712562643670,-572.8,0.00025205,2]
[321846422,1712562643679,-500.0,0.00025205,2]
[321846423,1712562643691,-500.0,0.00025205,2]
[321846424,1712562643700,-239.90880345,0.00025205,2]
[321846425,1712562643709,-153.0,0.0002526,2]
[321846426,1712562643719,-153.0,0.0002526,2]
[321846427,1712562643728,-153.0,0.0002526,2]
[321846428,1712562643737,-153.0,0.0002526,2]
[321846429,1712562643746,-153.0,0.0002526,2]
[321846430,1712562643755,-153.0,0.0002526,2]
[321846431,1712562643765,-193.57252445,0.000254,2]
[321846433,1712562643774,-500.0,0.00025478,2]
[321846434,1712562643783,-500.0,0.00025478,2]
[321846435,1712562643791,-500.0,0.00025478,2]
[321846436,1712562643800,-500.0,0.00025479,2]
[321846437,1712562643810,-645.79,0.00025479,2]
[321846438,1712562643819,-500.0,0.00025479,2]
[321846439,1712562643828,-905.93,0.00025479,2]
[321846440,1712562643837,-500.0,0.00025479,2]
[321846441,1712562643845,-500.0,0.00025479,2]
[321846442,1712562643854,-500.0,0.00025479,2]
[321846443,1712562643863,-500.0,0.00025479,2]
[321846444,1712562643872,-500.0,0.00025479,2]
[321846445,1712562643881,-639.69,0.00025479,2]
[321846446,1712562643889,-500.0,0.00025479,2]
[321846447,1712562643898,-500.0,0.00025479,2]
[321846448,1712562643907,-500.0,0.00025479,2]
[321846449,1712562643917,-500.0,0.00025479,2]
[321846450,1712562643926,-480.50838361,0.00025479,2]
[321846451,1712562643937,-500.0,0.00025479,2]
[321846452,1712562643946,-500.0,0.00025479,2]
[321846453,1712562643956,-500.0,0.00025479,2]
[321846454,1712562643965,-500.0,0.00025479,2]
[321846455,1712562643974,-500.0,0.00025479,2]
[321846456,1712562643983,-537.05,0.00025479,2]
[321846457,1712562643992,-2551.9,0.00025479,2]
[321846458,1712562644001,-449.85127673,0.00025479,2]
[321846459,1712562644011,-500.0,0.00025479,2]
[321846460,1712562644021,-500.0,0.00025479,2]
[321846461,1712562644030,-500.0,0.00025479,2]
[321846462,1712562644039,-412.66105304,0.00025479,2]
[321846463,1712562644049,-500.0,0.00025479,2]
[321846464,1712562644058,-409.51468111,0.00025479,2]
[321846465,1712562644067,-616.94313979,0.00025479,2]
[321846466,1712562644077,-404.5931871,0.00025479,2]
[321846467,1712562644086,-500.0,0.00025479,2]
[321846468,1712562644095,-500.0,0.00025479,2]
[321846469,1712562644105,-500.0,0.00025479,2]
[321846470,1712562644114,-500.0,0.00025479,2]
[321846471,1712562644124,-500.0,0.00025479,2]
[321846472,1712562644133,-500.0,0.00025479,2]
[321846473,1712562644143,-500.0,0.00025479,2]
[321846474,1712562644202,-701.21,0.00025479,2]
[321846475,1712562644212,-500.0,0.00025479,2]
[321846476,1712562644221,-500.0,0.00025479,2]
[321846477,1712562644231,-500.0,0.00025479,2]
[321846478,1712562644240,-718.57,0.00025479,2]
[321846479,1712562644251,-539.51,0.00025479,2]
[321846480,1712562644262,-693.34,0.00025479,2]
[321846481,1712562644272,-500.0,0.00025479,2]
[321846482,1712562644281,-500.0,0.00025479,2]
[321846483,1712562644291,-500.0,0.00025479,2]
[321846484,1712562644300,-500.0,0.00025479,2]
[321846485,1712562644309,-1033.43,0.00025479,2]
[321846486,1712562644318,-500.0,0.00025479,2]
[321846487,1712562644329,-214.78841606,0.00025479,2]
[321846488,1712562644339,-550.27686659,0.00025479,2]
[321846489,1712562644349,-500.0,0.00025479,2]
[321846490,1712562644358,-500.0,0.00025479,2]
[321846491,1712562644367,-500.0,0.00025479,2]
[321846492,1712562644377,-500.0,0.00025479,2]
[321846493,1712562644386,-268.4688476,0.00025479,2]
[321846494,1712562644395,-500.0,0.00025479,2]
[321846495,1712562644405,-500.0,0.00025479,2]
[321846496,1712562644414,-500.0,0.00025479,2]
[321846497,1712562644423,-500.0,0.00025479,2]
[321846498,1712562644435,-500.0,0.00025479,2]
[321846499,1712562644446,-500.0,0.00025479,2]
[321846500,1712562644455,-500.0,0.00025479,2]
[321846501,1712562644465,-500.0,0.00025479,2]
[321846502,1712562644474,-500.0,0.00025479,2]
[321846503,1712562644483,-500.0,0.00025479,2]
[321846504,1712562644492,-500.0,0.00025479,2]
[321846505,1712562644502,-500.0,0.00025479,2]
[321846506,1712562644511,-2825.18,0.00025479,2]
[321846507,1712562644521,-500.0,0.00025479,2]
[321846508,1712562644530,-500.0,0.00025479,2]
[321846509,1712562644540,-500.0,0.00025479,2]
[321846510,1712562644550,-500.0,0.00025479,2]
[321846511,1712562644571,-500.0,0.00025479,2]
[321846512,1712562644588,-500.0,0.00025479,2]
[321846513,1712562644607,-500.0,0.00025479,2]
[321846514,1712562644627,-500.0,0.00025479,2]
[321846515,1712562644644,-500.0,0.00025479,2]
[321846516,1712562644663,-1320.93,0.00025479,2]
[321846517,1712562644680,-500.0,0.00025479,2]
[321846518,1712562644698,-978.67,0.00025479,2]
[321846519,1712562644716,-500.0,0.00025479,2]
[321846520,1712562644731,-500.0,0.00025479,2]
[321846521,1712562644750,-500.0,0.00025479,2]
[321846522,1712562644769,-500.0,0.00025479,2]
[321846523,1712562644780,-500.0,0.00025479,2]
[321846524,1712562644796,-500.0,0.00025479,2]
[321846525,1712562644812,-4435.2,0.00025479,2]
[321846526,1712562644826,-508.38824901,0.00025479,2]
[321846527,1712562644840,-500.0,0.00025479,2]
[321846528,1712562644855,-4257.06,0.00025479,2]
[321846529,1712562644870,-3460.88,0.00025479,2]
[321846530,1712562644884,-638.52,0.00025479,2]
[321846531,1712562644898,-500.0,0.00025479,2]
[321846532,1712562644913,-9186.73,0.00025479,2]
[321846533,1712562644926,-583.7,0.00025479,2]
[321846534,1712562644941,-631.35,0.00025479,2]
[321846535,1712562644956,-500.0,0.00025479,2]
[321846536,1712562644970,-500.0,0.00025479,2]
[321846537,1712562644984,-500.0,0.00025479,2]
[321846538,1712562644999,-500.0,0.00025479,2]
[321846539,1712562645010,-365.71800157,0.00025479,2]
[321846540,1712562645020,-3081.78,0.00025479,2]
[321846541,1712562645029,-500.0,0.00025479,2]
[321846542,1712562645038,-956.28,0.00025479,2]
[321846543,1712562645047,-500.0,0.00025479,2]
[321846544,1712562645056,-500.0,0.00025479,2]
[321846545,1712562645065,-500.0,0.00025479,2]
[321846546,1712562645075,-500.0,0.00025479,2]
[321846547,1712562645084,-500.0,0.00025479,2]
[321846548,1712562645094,-16438.35,0.00025479,2]
[321846549,1712562645216,-500.0,0.00025479,2]
[321846550,1712562645226,-3926.54,0.00025479,2]
[321846551,1712562645236,-500.0,0.00025479,2]
[321846552,1712562645246,-504.87546296,0.00025479,2]
[321846553,1712562645257,-500.0,0.00025479,2]
[321846554,1712562645267,-823.66,0.00025479,2]
[321846555,1712562645277,-500.0,0.00025479,2]
[321846556,1712562645286,-1000.0,0.00025479,2]
[321846557,1712562645295,-1028.84,0.00025479,2]
[321846558,1712562645304,-500.0,0.00025479,2]
[321846559,1712562645314,-500.0,0.00025479,2]
[321846560,1712562645323,-500.0,0.00025479,2]
[321846562,1712562645332,-510.94563685,0.00025479,2]
[321846563,1712562645341,-500.0,0.00025479,2]
[321846564,1712562645350,-1864.26,0.00025479,2]
[321846565,1712562645358,-500.0,0.00025479,2]
[321846566,1712562645367,-500.0,0.00025479,2]
[321846567,1712562645376,-500.0,0.00025479,2]
[321846569,1712562645385,-782.37,0.00025479,2]
[321846570,1712562645394,-500.0,0.00025479,2]
[321846572,1712562645403,-5545.12,0.00025479,2]
[321846573,1712562645411,-158.92043066,0.00025479,2]
[321846574,1712562645421,-546.73620973,0.00025479,2]
[321846575,1712562645432,-500.0,0.00025479,2]
[321846576,1712562645441,-1977.17,0.00025479,2]
[321846577,1712562645450,-627.35,0.00025479,2]
[321846578,1712562645459,-765.09,0.00025479,2]
[321846579,1712562645468,-532.81,0.00025479,2]
[321846580,1712562645477,-500.0,0.00025479,2]
[321846581,1712562645487,-1192.42,0.00025479,2]
[321846582,1712562645495,-500.0,0.00025479,2]
[321846583,1712562645505,-500.0,0.00025479,2]
[321846584,1712562645514,-1164.07,0.00025479,2]
[321846585,1712562645523,-572.8,0.00025479,2]
[321846586,1712562645532,-500.0,0.00025479,2]
[321846587,1712562645541,-500.0,0.00025479,2]
[321846588,1712562645550,-202.0,0.0002548,2]
[321846589,1712562645559,-593.76873474,0.000257,2]
[321846590,1712562645568,-500.0,0.00025752,2]
[321846591,1712562645577,-500.0,0.00025752,2]
[321846592,1712562645586,-500.0,0.00025753,2]
[321846593,1712562645595,-645.79,0.00025753,2]
[321846594,1712562645604,-500.0,0.00025753,2]
[321846595,1712562645613,-905.93,0.00025753,2]
[321846596,1712562645622,-500.0,0.00025753,2]
[321846597,1712562645631,-500.0,0.00025753,2]
[321846598,1712562645640,-500.0,0.00025753,2]
[321846599,1712562645649,-500.0,0.00025753,2]
[321846600,1712562645658,-500.0,0.00025753,2]
[321846601,1712562645667,-639.69,0.00025753,2]
[321846602,1712562645676,-500.0,0.00025753,2]
[321846603,1712562645687,-500.0,0.00025753,2]
[321846604,1712562645696,-500.0,0.00025753,2]
[321846605,1712562645705,-500.0,0.00025753,2]
[321846606,1712562645714,-500.0,0.00025753,2]
[321846607,1712562645723,-500.0,0.00025753,2]
[321846608,1712562645732,-337.86711139,0.00025753,2]
[321846609,1712562645742,-500.0,0.00025753,2]
[321846610,1712562645752,-500.0,0.00025753,2]
[321846611,1712562645761,-537.05,0.00025753,2]
[321846612,1712562645771,-2551.9,0.00025753,2]
[321846613,1712562645781,-500.0,0.00025753,2]
[321846614,1712562645790,-500.0,0.00025753,2]
[321846615,1712562645800,-500.0,0.00025753,2]
[321846616,1712562645809,-500.0,0.00025753,2]
[321846617,1712562645819,-500.0,0.00025753,2]
[321846618,1712562645828,-541.61958612,0.00025753,2]
[321846619,1712562645837,-500.0,0.00025753,2]
[321846620,1712562645846,-500.0,0.00025753,2]
[321846621,1712562645856,-500.0,0.00025753,2]
[321846622,1712562645865,-500.0,0.00025753,2]
[321846623,1712562645875,-500.0,0.00025753,2]
[321846624,1712562645885,-701.21,0.00025753,2]
[321846625,1712562645894,-500.0,0.00025753,2]
[321846626,1712562645904,-500.0,0.00025753,2]
[321846627,1712562645914,-525.38979123,0.00025753,2]
[321846628,1712562645923,-718.57,0.00025753,2]
[321846629,1712562645933,-539.51,0.00025753,2]
[321846630,1712562645943,-693.34,0.00025753,2]
[321846631,1712562645953,-500.0,0.00025753,2]
[321846632,1712562645962,-500.0,0.00025753,2]
[321846633,1712562645972,-245.339273,0.00025753,2]
[321846634,1712562645981,-500.0,0.00025753,2]
[321846635,1712562645990,-1033.43,0.00025753,2]
[321846636,1712562646000,-500.0,0.00025753,2]
[321846637,1712562646009,-500.0,0.00025753,2]
[321846638,1712562646018,-560.89136122,0.00025753,2]
[321846639,1712562646027,-500.0,0.00025753,2]
[321846640,1712562646036,-504.64830373,0.00025753,2]
[321846641,1712562646046,-500.0,0.00025753,2]
[321846642,1712562646056,-500.0,0.00025753,2]
[321846643,1712562646066,-500.0,0.00025753,2]
[321846644,1712562646075,-500.0,0.00025753,2]
[321846645,1712562646085,-500.0,0.00025753,2]
[321846646,1712562646094,-500.0,0.00025753,2]
[321846647,1712562646103,-500.0,0.00025753,2]
[321846648,1712562646112,-513.38813459,0.00025753,2]
[321846649,1712562646121,-500.0,0.00025753,2]
[321846650,1712562646130,-500.0,0.00025753,2]
[321846651,1712562646139,-500.0,0.00025753,2]
[321846652,1712562646148,-500.0,0.00025753,2]
[321846653,1712562646157,-2825.18,0.00025753,2]
[321846654,1712562646167,-530.01582937,0.00025753,2]
[321846655,1712562646179,-500.0,0.00025753,2]
[321846656,1712562646189,-500.0,0.00025753,2]
[321846657,1712562646197,-500.0,0.00025753,2]
[321846658,1712562646207,-500.0,0.00025753,2]
[321846659,1712562646216,-500.0,0.00025753,2]
[321846660,1712562646225,-500.0,0.00025753,2]
[321846661,1712562646235,-231.10038362,0.00025753,2]
[321846662,1712562646244,-500.0,0.00025753,2]
[321846663,1712562646256,-1320.93,0.00025753,2]
[321846664,1712562646268,-500.0,0.00025753,2]
[321846665,1712562646278,-978.67,0.00025753,2]
[321846666,1712562646287,-500.0,0.00025753,2]
[321846667,1712562646296,-500.0,0.00025753,2]
[321846668,1712562646305,-500.0,0.00025753,2]
[321846669,1712562646315,-500.0,0.00025753,2]
[321846670,1712562646324,-500.0,0.00025753,2]
[321846671,1712562646332,-500.0,0.00025753,2]
[321846672,1712562646342,-4435.2,0.00025753,2]
[321846673,1712562646351,-500.0,0.00025753,2]
[321846674,1712562646360,-4257.06,0.00025753,2]
[321846675,1712562646369,-3460.88,0.00025753,2]
[321846676,1712562646378,-638.52,0.00025753,2]
[321846677,1712562646388,-500.0,0.00025753,2]
[321846678,1712562646397,-9186.73,0.00025753,2]
[321846679,1712562646406,-583.7,0.00025753,2]
[321846680,1712562646415,-631.35,0.00025753,2]
[321846681,1712562646424,-500.0,0.00025753,2]
[321846682,1712562646434,-321.18575085,0.00025753,2]
[321846683,1712562646443,-500.0,0.00025753,2]
[321846684,1712562646452,-500.0,0.00025753,2]
[321846685,1712562646462,-3081.78,0.00025753,2]
[321846686,1712562646471,-500.0,0.00025753,2]
[321846687,1712562646480,-956.28,0.00025753,2]
[321846688,1712562646489,-500.0,0.00025753,2]
[321846689,1712562646498,-500.0,0.00025753,2]
[321846690,1712562646508,-500.0,0.00025753,2]
[321846691,1712562646517,-500.0,0.00025753,2]
[321846692,1712562646528,-500.0,0.00025753,2]
[321846693,1712562646538,-16438.35,0.00025753,2]
[321846694,1712562646548,-500.0,0.00025753,2]
[321846695,1712562646558,-3926.54,0.00025753,2]
[321846696,1712562646567,-500.0,0.00025753,2]
[321846697,1712562646576,-500.0,0.00025753,2]
[321846698,1712562646586,-823.66,0.00025753,2]
[321846699,1712562646595,-500.0,0.00025753,2]
[321846700,1712562646604,-1011.32531507,0.00025753,2]
[321846701,1712562646613,-1028.84,0.00025753,2]
[321846702,1712562646622,-500.0,0.00025753,2]
[321846703,1712562646631,-500.0,0.00025753,2]
[321846704,1712562646640,-519.76899461,0.00025753,2]
[321846705,1712562646650,-500.0,0.00025753,2]
[321846706,1712562646658,-1864.26,0.00025753,2]
[321846707,1712562646668,-500.0,0.00025753,2]
[321846708,1712562646677,-500.0,0.00025753,2]
[321846709,1712562646688,-500.0,0.00025753,2]
[321846710,1712562646697,-782.37,0.00025753,2]
[321846711,1712562646707,-500.0,0.00025753,2]
[321846712,1712562646716,-5545.12,0.00025753,2]
[321846713,1712562646725,-500.0,0.00025753,2]
[321846714,1712562646734,-1977.17,0.00025753,2]
[321846715,1712562646744,-627.35,0.00025753,2]
[321846716,1712562646752,-765.09,0.00025753,2]
[321846717,1712562646762,-532.81,0.00025753,2]
[321846718,1712562646771,-331.91799171,0.00025753,2]
[321846719,1712562646781,-1192.42,0.00025753,2]
[321846720,1712562646794,-500.0,0.00025753,2]
[321846721,1712562646805,-500.0,0.00025753,2]
[321846722,1712562646814,-1164.07,0.00025753,2]
[321846723,1712562646823,-572.8,0.00025753,2]
[321846724,1712562646832,-500.0,0.00025753,2]
[321846725,1712562646842,-180.30097136,0.00025753,2]
[321846726,1712562646851,-153.42006028,0.00025937,2]
[321846727,1712562646861,-587.0,0.00025992,2]
[321846728,1712562646870,-500.0,0.00026026,2]
[321846729,1712562646880,-500.0,0.00026026,2]
[321846730,1712562646889,-500.0,0.00026027,2]
[321846731,1712562646898,-645.79,0.00026027,2]
[321846732,1712562646907,-500.0,0.00026027,2]
[321846733,1712562646917,-905.93,0.00026027,2]
[321846734,1712562646926,-500.0,0.00026027,2]
[321846735,1712562646935,-500.0,0.00026027,2]
[321846736,1712562646944,-500.0,0.00026027,2]
[321846737,1712562646954,-500.0,0.00026027,2]
[321846738,1712562646963,-500.0,0.00026027,2]
[321846739,1712562646972,-639.69,0.00026027,2]
[321846740,1712562646982,-500.0,0.00026027,2]
[321846741,1712562647061,-500.0,0.00026027,2]
[321846742,1712562647071,-525.89704082,0.00026027,2]
[321846743,1712562647081,-500.0,0.00026027,2]
[321846744,1712562647091,-500.0,0.00026027,2]
[321846745,1712562647100,-500.0,0.00026027,2]
[321846746,1712562647110,-500.0,0.00026027,2]
[321846747,1712562647119,-500.0,0.00026027,2]
[321846748,1712562647128,-537.05,0.00026027,2]
[321846749,1712562647138,-2551.9,0.00026027,2]
[321846750,1712562647148,-500.0,0.00026027,2]
[321846751,1712562647157,-500.0,0.00026027,2]
[321846752,1712562647167,-500.0,0.00026027,2]
[321846753,1712562647180,-500.0,0.00026027,2]
[321846754,1712562647190,-500.0,0.00026027,2]
[321846755,1712562647199,-500.0,0.00026027,2]
[321846756,1712562647209,-563.53370709,0.00026027,2]
[321846757,1712562647219,-500.0,0.00026027,2]
[321846758,1712562647228,-500.0,0.00026027,2]
[321846759,1712562647237,-500.0,0.00026027,2]
[321846760,1712562647247,-701.21,0.00026027,2]
[321846761,1712562647257,-500.0,0.00026027,2]
[321846762,1712562647267,-500.0,0.00026027,2]
[321846763,1712562647276,-718.57,0.00026027,2]
[321846764,1712562647285,-539.51,0.00026027,2]
[321846765,1712562647295,-693.34,0.00026027,2]
[321846766,1712562647304,-500.0,0.00026027,2]
[321846767,1712562647313,-500.0,0.00026027,2]
[321846768,1712562647322,-500.0,0.00026027,2]
[321846769,1712562647331,-1033.43,0.00026027,2]
[321846770,1712562647340,-500.0,0.00026027,2]
[321846771,1712562647349,-500.0,0.00026027,2]
[321846772,1712562647358,-500.0,0.00026027,2]
[321846773,1712562647367,-500.0,0.00026027,2]
[321846774,1712562647377,-500.0,0.00026027,2]
[321846775,1712562647386,-500.0,0.00026027,2]
[321846776,1712562647395,-500.0,0.00026027,2]
[321846777,1712562647404,-541.15203385,0.00026027,2]
[321846778,1712562647414,-500.0,0.00026027,2]
[321846779,1712562647423,-500.0,0.00026027,2]
[321846780,1712562647432,-500.0,0.00026027,2]
[321846781,1712562647441,-500.0,0.00026027,2]
[321846782,1712562647450,-500.0,0.00026027,2]
[321846783,1712562647460,-500.0,0.00026027,2]
[321846784,1712562647469,-2825.18,0.00026027,2]
[321846785,1712562647478,-500.0,0.00026027,2]
[321846786,1712562647487,-500.0,0.00026027,2]
[321846787,1712562647497,-500.0,0.00026027,2]
[321846788,1712562647506,-500.0,0.00026027,2]
[321846789,1712562647515,-500.0,0.00026027,2]
[321846790,1712562647524,-500.0,0.00026027,2]
[321846791,1712562647533,-500.0,0.00026027,2]
[321846792,1712562647542,-1320.93,0.00026027,2]
[321846793,1712562647551,-500.0,0.00026027,2]
[321846794,1712562647561,-978.67,0.00026027,2]
[321846795,1712562647570,-500.0,0.00026027,2]
[321846796,1712562647579,-500.0,0.00026027,2]
[321846797,1712562647589,-500.0,0.00026027,2]
[321846798,1712562647597,-500.0,0.00026027,2]
[321846799,1712562647606,-500.0,0.00026027,2]
[321846800,1712562647615,-500.0,0.00026027,2]
[321846801,1712562647624,-4435.2,0.00026027,2]
[321846802,1712562647634,-500.0,0.00026027,2]
[321846803,1712562647643,-4257.06,0.00026027,2]
[321846804,1712562647652,-3460.88,0.00026027,2]
[321846805,1712562647661,-638.52,0.00026027,2]
[321846806,1712562647670,-500.0,0.00026027,2]
[321846807,1712562647680,-9186.73,0.00026027,2]
[321846808,1712562647688,-583.7,0.00026027,2]
[321846809,1712562647698,-631.35,0.00026027,2]
[321846810,1712562647707,-500.0,0.00026027,2]
[321846811,1712562647716,-500.0,0.00026027,2]
[321846812,1712562647725,-500.0,0.00026027,2]
[321846813,1712562647734,-3081.78,0.00026027,2]
[321846814,1712562647743,-500.0,0.00026027,2]
[321846815,1712562647753,-956.28,0.00026027,2]
[321846816,1712562647762,-500.0,0.00026027,2]
[321846817,1712562647771,-500.0,0.00026027,2]
[321846818,1712562647780,-500.0,0.00026027,2]
[321846819,1712562647789,-515.7410065,0.00026027,2]
[321846820,1712562647798,-504.88083089,0.00026027,2]
[321846821,1712562647808,-16438.35,0.00026027,2]
[321846822,1712562647817,-500.0,0.00026027,2]
[321846823,1712562647827,-3926.54,0.00026027,2]
[321846824,1712562647836,-500.0,0.00026027,2]
[321846825,1712562647846,-500.0,0.00026027,2]
[321846826,1712562647856,-823.66,0.00026027,2]
[321846827,1712562647865,-474.6770746,0.00026027,2]
[321846828,1712562647874,-1028.84,0.00026027,2]
[321846829,1712562647883,-458.89168478,0.00026027,2]
[321846830,1712562647893,-500.0,0.00026027,2]
[321846831,1712562647902,-500.0,0.00026027,2]
[321846832,1712562647911,-1864.26,0.00026027,2]
[321846833,1712562647920,-500.0,0.00026027,2]
[321846834,1712562647929,-500.0,0.00026027,2]
[321846835,1712562647939,-500.0,0.00026027,2]
[321846836,1712562647949,-782.37,0.00026027,2]
[321846837,1712562647959,-500.0,0.00026027,2]
[321846838,1712562647968,-5545.12,0.00026027,2]
[321846839,1712562647977,-500.0,0.00026027,2]
[321846840,1712562647987,-1977.17,0.00026027,2]
[321846841,1712562647996,-627.35,0.00026027,2]
[321846842,1712562648005,-765.09,0.00026027,2]
[321846843,1712562648015,-532.81,0.00026027,2]
[321846844,1712562648024,-1192.42,0.00026027,2]
[321846845,1712562648034,-500.0,0.00026027,2]
[321846846,1712562648043,-500.0,0.00026027,2]
[321846847,1712562648052,-1164.07,0.00026027,2]
[321846848,1712562648062,-572.8,0.00026027,2]
[321846849,1712562648071,-500.0,0.00026027,2]
[321846850,1712562648080,-500.0,0.00026198,2]
[321846851,1712562648089,-500.0,0.00026199,2]
[321846852,1712562648098,-500.0,0.00026199,2]
[321846853,1712562648108,-51390.93424379,0.000262,2]
[321846854,1712562648117,-334.308849,0.000262,2]
[321846855,1712562648126,-500.0,0.000263,2]
[321846856,1712562648135,-516.71372373,0.000263,2]
[321846857,1712562648144,-500.0,0.00026301,2]
[321846858,1712562648154,-645.79,0.00026301,2]
[321846859,1712562648164,-537.83491186,0.00026301,2]
[321846860,1712562648176,-905.93,0.00026301,2]
[321846861,1712562648186,-500.0,0.00026301,2]
[321846862,1712562648195,-500.0,0.00026301,2]
[321846863,1712562648204,-500.0,0.00026301,2]
[321846864,1712562648214,-500.0,0.00026301,2]
[321846865,1712562648223,-500.0,0.00026301,2]
[321846866,1712562648232,-639.69,0.00026301,2]
[321846867,1712562648241,-500.0,0.00026301,2]
[321846868,1712562648252,-500.0,0.00026301,2]
[321846869,1712562648262,-500.0,0.00026301,2]
[321846870,1712562648271,-500.0,0.00026301,2]
[321846871,1712562648280,-500.0,0.00026301,2]
[321846872,1712562648289,-500.0,0.00026301,2]
[321846873,1712562648299,-500.0,0.00026301,2]
[321846874,1712562648308,-537.05,0.00026301,2]
[321846875,1712562648317,-2551.9,0.00026301,2]
[321846876,1712562648327,-500.0,0.00026301,2]
[321846877,1712562648337,-500.0,0.00026301,2]
[321846878,1712562648346,-500.0,0.00026301,2]
[321846879,1712562648356,-500.0,0.00026301,2]
[321846880,1712562648365,-474.96575416,0.00026301,2]
[321846881,1712562648374,-375.9576669,0.00026301,2]
[321846882,1712562648384,-500.0,0.00026301,2]
[321846883,1712562648393,-500.0,0.00026301,2]
[321846884,1712562648403,-154.10916917,0.00026301,2]
[321846885,1712562648412,-701.21,0.00026301,2]
[321846886,1712562648422,-500.0,0.00026301,2]
[321846887,1712562648433,-277.10797451,0.00026301,2]
[321846888,1712562648442,-718.57,0.00026301,2]
[321846889,1712562648452,-539.51,0.00026301,2]
[321846890,1712562648461,-693.34,0.00026301,2]
[321846891,1712562648471,-500.0,0.00026301,2]
[321846892,1712562648480,-500.0,0.00026301,2]
[321846893,1712562648489,-500.0,0.00026301,2]
[321846894,1712562648499,-1033.43,0.00026301,2]
[321846895,1712562648508,-500.0,0.00026301,2]
[321846896,1712562648517,-500.0,0.00026301,2]
[321846897,1712562648526,-500.0,0.00026301,2]
[321846898,1712562648535,-500.0,0.00026301,2]
[321846899,1712562648544,-500.0,0.00026301,2]
[321846900,1712562648553,-500.0,0.00026301,2]
[321846901,1712562648563,-500.0,0.00026301,2]
[321846902,1712562648573,-500.0,0.00026301,2]